[Event "Early-Titled-Tuesday-Blitz-January-23-2024"]
[Site "Chess.com"]
[Date "2024.01.23"]
[Round "3"]
[White "biostatistician"]
[Black "Eeleyah"]
[Result "1-0"]
[WhiteElo "2582"]
[BlackElo "2402"]
[TimeControl "180+1"]
[EndTime "8:25:59 PST"]
[Termination "biostatistician won by resignation"]

1. d4 {[%clk 0:02:59.7]} 1... d5 {[%clk 0:02:58.7]} 2. Nf3 {[%clk 0:03:00.6]}
2... Nf6 {[%clk 0:02:58.4]} 3. c4 {[%clk 0:03:01.1]} 3... e6 {[%clk 0:02:56.3]}
4. Bg5 {[%clk 0:03:01.1]} 4... Nbd7 {[%clk 0:02:54.8]} 5. Nc3 {[%clk 0:03:00.7]}
5... Bb4 {[%clk 0:02:49.4]} 6. e3 {[%clk 0:02:55.8]} 6... c5 {[%clk 0:02:48.9]}
7. cxd5 {[%clk 0:02:55.1]} 7... exd5 {[%clk 0:02:48.8]} 8. Qc2 {[%clk
0:02:55.3]} 8... Qa5 {[%clk 0:02:47.2]} 9. Bd3 {[%clk 0:02:53.5]} 9... c4 {[%clk
0:02:43.9]} 10. Bf5 {[%clk 0:02:53.5]} 10... O-O {[%clk 0:02:31.3]} 11. O-O
{[%clk 0:02:48.7]} 11... Bxc3 {[%clk 0:02:27.3]} 12. Qxc3 {[%clk 0:02:44.3]}
12... Qxc3 {[%clk 0:02:27]} 13. bxc3 {[%clk 0:02:45.2]} 13... Ne4 {[%clk
0:02:22.6]} 14. Bxe4 {[%clk 0:02:44.1]} 14... dxe4 {[%clk 0:02:22.9]} 15. Nd2
{[%clk 0:02:45]} 15... Nb6 {[%clk 0:02:06.9]} 16. Nxe4 {[%clk 0:02:44.8]} 16...
Be6 {[%clk 0:02:03.1]} 17. Nc5 {[%clk 0:02:31.8]} 17... Rfe8 {[%clk 0:01:51.9]}
18. Nxb7 {[%clk 0:02:25.4]} 18... Na4 {[%clk 0:01:52]} 19. Rfc1 {[%clk 0:02:23]}
19... Reb8 {[%clk 0:01:46.6]} 20. Nc5 {[%clk 0:02:16.3]} 20... Nxc5 {[%clk
0:01:46]} 21. dxc5 {[%clk 0:02:17.2]} 21... Bf5 {[%clk 0:01:41.2]} 22. Bf4
{[%clk 0:02:14]} 22... Rc8 {[%clk 0:01:41.3]} 23. Bd6 {[%clk 0:02:13.9]} 23...
Bd3 {[%clk 0:01:40.6]} 24. f3 {[%clk 0:02:11.7]} 24... a5 {[%clk 0:01:40.2]} 25.
e4 {[%clk 0:02:09]} 25... f6 {[%clk 0:01:37.1]} 26. Rd1 {[%clk 0:02:05.3]} 26...
Ra7 {[%clk 0:01:36.8]} 27. Rd2 {[%clk 0:02:04.2]} 27... Rb7 {[%clk 0:01:36.4]}
28. Kf2 {[%clk 0:02:01.6]} 28... Kf7 {[%clk 0:01:36.1]} 29. Ke3 {[%clk
0:02:01.8]} 29... Ke6 {[%clk 0:01:36.1]} 30. g4 {[%clk 0:01:58.2]} 30... g6
{[%clk 0:01:34.9]} 31. Rg1 {[%clk 0:01:56.2]} 31... Rb5 {[%clk 0:01:31.9]} 32.
Rgg2 {[%clk 0:01:54.9]} 32... Rd8 {[%clk 0:01:28.3]} 33. Rb2 {[%clk 0:01:54.5]}
33... Rxd6 {[%clk 0:01:00.6]} 34. cxd6 {[%clk 0:01:54.3]} 34... Rc5 {[%clk
0:01:00]} 35. Rb6 {[%clk 0:01:53]} 35... f5 {[%clk 0:00:59.3]} 36. exf5+ {[%clk
0:01:49.6]} 36... gxf5 {[%clk 0:00:59.7]} 37. g5 {[%clk 0:01:49.6]} 37... Re5+
{[%clk 0:00:52.2]} 38. Kf4 {[%clk 0:01:49.2]} 38... Re1 {[%clk 0:00:52]} 39. h4
{[%clk 0:01:48.9]} 39... Rh1 {[%clk 0:00:51.8]} 40. g6 {[%clk 0:01:41.8]} 40...
hxg6 {[%clk 0:00:41.2]} 41. Rxg6+ {[%clk 0:01:42.7]} 41... Kf7 {[%clk 0:00:41]}
42. Rh6 {[%clk 0:01:40.9]} 42... Kg7 {[%clk 0:00:35.3]} 43. d7 {[%clk
0:01:40.3]} 1-0

[Event "Early-Titled-Tuesday-Blitz-January-23-2024"]
[Site "Chess.com"]
[Date "2024.01.23"]
[Round "3"]
[White "Sebastian"]
[Black "Alexei_Kornev"]
[Result "1-0"]
[WhiteElo "3004"]
[BlackElo "2716"]
[TimeControl "180+1"]
[EndTime "8:26:01 PST"]
[Termination "Sebastian won by resignation"]

1. e4 {[%clk 0:03:00.9]} 1... c5 {[%clk 0:02:58.3]} 2. Nf3 {[%clk 0:03:01]} 2...
d6 {[%clk 0:02:57.6]} 3. d4 {[%clk 0:03:01.6]} 3... cxd4 {[%clk 0:02:57.9]} 4.
Nxd4 {[%clk 0:03:02.5]} 4... Nf6 {[%clk 0:02:57.4]} 5. Nc3 {[%clk 0:03:03.1]}
5... a6 {[%clk 0:02:57.5]} 6. Bg5 {[%clk 0:03:01.7]} 6... e6 {[%clk 0:02:49.3]}
7. Qe2 {[%clk 0:03:02.1]} 7... b5 {[%clk 0:02:47.4]} 8. a3 {[%clk 0:02:59.2]}
8... Bb7 {[%clk 0:02:46.1]} 9. O-O-O {[%clk 0:02:58.4]} 9... Nbd7 {[%clk
0:02:45.6]} 10. h4 {[%clk 0:02:45.9]} 10... h6 {[%clk 0:02:42.2]} 11. Bd2 {[%clk
0:02:44.8]} 11... Rc8 {[%clk 0:02:35.3]} 12. Rh3 {[%clk 0:02:41.7]} 12... Qb6
{[%clk 0:02:34.4]} 13. Nb3 {[%clk 0:02:33.3]} 13... Ne5 {[%clk 0:02:31.1]} 14.
f4 {[%clk 0:02:18.7]} 14... Nc4 {[%clk 0:02:30.7]} 15. Be1 {[%clk 0:02:19.3]}
15... h5 {[%clk 0:02:23.1]} 16. Rhd3 {[%clk 0:02:17.7]} 16... Be7 {[%clk
0:02:20.5]} 17. g3 {[%clk 0:02:15.8]} 17... O-O {[%clk 0:02:10.9]} 18. Bh3
{[%clk 0:02:15.3]} 18... g6 {[%clk 0:02:08]} 19. g4 {[%clk 0:02:12]} 19... hxg4
{[%clk 0:02:05.8]} 20. Bxg4 {[%clk 0:02:12.2]} 20... d5 {[%clk 0:02:02.3]} 21.
e5 {[%clk 0:01:29.1]} 21... Ne4 {[%clk 0:01:51.2]} 22. h5 {[%clk 0:01:25.1]}
22... b4 {[%clk 0:01:33.6]} 23. axb4 {[%clk 0:01:22.4]} 23... Bxb4 {[%clk
0:01:34.5]} 24. hxg6 {[%clk 0:00:55.9]} 24... fxg6 {[%clk 0:01:35.4]} 25. Qh2
{[%clk 0:00:55.3]} 25... Ne3 {[%clk 0:01:16.3]} 26. Qh6 {[%clk 0:00:54.7]} 26...
Nf5 {[%clk 0:00:56.9]} 27. Qxg6+ {[%clk 0:00:53.6]} 27... Ng7 {[%clk 0:00:56.6]}
28. Nxe4 {[%clk 0:00:46.7]} 28... dxe4 {[%clk 0:00:54.8]} 29. Rd7 {[%clk
0:00:43.2]} 1-0

[Event "Early-Titled-Tuesday-Blitz-January-23-2024"]
[Site "Chess.com"]
[Date "2024.01.23"]
[Round "3"]
[White "SujanaLohani"]
[Black "Revan_2002"]
[Result "0-1"]
[WhiteElo "1986"]
[BlackElo "2345"]
[TimeControl "180+1"]
[EndTime "8:26:04 PST"]
[Termination "Revan_2002 won on time"]

1. d4 {[%clk 0:03:00.9]} 1... Nf6 {[%clk 0:02:59]} 2. Nf3 {[%clk 0:03:01.1]}
2... g6 {[%clk 0:02:58.6]} 3. c4 {[%clk 0:02:53.5]} 3... Bg7 {[%clk 0:02:58.8]}
4. g3 {[%clk 0:02:54.4]} 4... O-O {[%clk 0:02:59.1]} 5. Bg2 {[%clk 0:02:53.5]}
5... d6 {[%clk 0:02:59.4]} 6. O-O {[%clk 0:02:43.7]} 6... Nbd7 {[%clk 0:03:00]}
7. Nc3 {[%clk 0:02:41.7]} 7... e5 {[%clk 0:03:00.3]} 8. e3 {[%clk 0:02:40.3]}
8... Re8 {[%clk 0:02:59.7]} 9. b4 {[%clk 0:02:35.3]} 9... c6 {[%clk 0:02:58.3]}
10. Bb2 {[%clk 0:02:32.9]} 10... e4 {[%clk 0:02:58.1]} 11. Nd2 {[%clk
0:02:32.2]} 11... d5 {[%clk 0:02:58.8]} 12. cxd5 {[%clk 0:02:29]} 12... cxd5
{[%clk 0:02:59.7]} 13. Rc1 {[%clk 0:02:25.5]} 13... Nf8 {[%clk 0:02:57.3]} 14.
Nb5 {[%clk 0:02:24.2]} 14... Re7 {[%clk 0:02:57.3]} 15. Qc2 {[%clk 0:02:11.5]}
15... Bg4 {[%clk 0:02:57.5]} 16. Nb3 {[%clk 0:01:44.6]} 16... Rc8 {[%clk
0:02:52.9]} 17. Qd2 {[%clk 0:01:37.4]} 17... a6 {[%clk 0:02:52.4]} 18. Rxc8
{[%clk 0:01:34.6]} 18... Bxc8 {[%clk 0:02:50.5]} 19. Nc3 {[%clk 0:01:25.1]}
19... h5 {[%clk 0:02:50.6]} 20. h4 {[%clk 0:01:17.4]} 20... Bg4 {[%clk
0:02:47.8]} 21. Nc5 {[%clk 0:01:15.9]} 21... N8h7 {[%clk 0:02:43.6]} 22. a4
{[%clk 0:01:07.6]} 22... g5 {[%clk 0:02:42.8]} 23. b5 {[%clk 0:00:57.4]} 23...
gxh4 {[%clk 0:02:42]} 24. gxh4 {[%clk 0:00:56.2]} 24... Bf3 {[%clk 0:02:39.8]}
25. bxa6 {[%clk 0:00:42.8]} 25... bxa6 {[%clk 0:02:39.1]} 26. Nxa6 {[%clk
0:00:36.6]} 26... Bxg2 {[%clk 0:02:38.1]} 27. Kxg2 {[%clk 0:00:36.2]} 27... Qc8
{[%clk 0:02:38.7]} 28. Qe2 {[%clk 0:00:19.5]} 28... Nf8 {[%clk 0:02:39.2]} 29.
Nc5 {[%clk 0:00:17.4]} 29... Ng6 {[%clk 0:02:39.3]} 30. Rh1 {[%clk 0:00:16.5]}
30... Ng4 {[%clk 0:02:36.1]} 31. a5 {[%clk 0:00:12.6]} 31... Qf5 {[%clk
0:02:22.7]} 32. a6 {[%clk 0:00:09.9]} 32... Bxd4 {[%clk 0:02:23]} 33. exd4
{[%clk 0:00:08.7]} 33... Nf4+ {[%clk 0:02:22.7]} 34. Kf1 {[%clk 0:00:08.4]}
34... Nxe2 {[%clk 0:02:23.6]} 35. Kxe2 {[%clk 0:00:08.4]} 35... Qf3+ {[%clk
0:02:21.8]} 36. Kd2 {[%clk 0:00:06.5]} 36... Qxh1 {[%clk 0:02:17.5]} 37. Nxd5
{[%clk 0:00:03.6]} 37... e3+ {[%clk 0:02:16.3]} 38. fxe3 {[%clk 0:00:02.4]}
38... Qxd5 {[%clk 0:02:15.5]} 0-1

[Event "Early-Titled-Tuesday-Blitz-January-23-2024"]
[Site "Chess.com"]
[Date "2024.01.23"]
[Round "3"]
[White "kekic76"]
[Black "AlexOstrovskiy"]
[Result "0-1"]
[WhiteElo "2316"]
[BlackElo "2786"]
[TimeControl "180+1"]
[EndTime "8:26:11 PST"]
[Termination "AlexOstrovskiy won by resignation"]

1. e4 {[%clk 0:03:00.9]} 1... d5 {[%clk 0:02:58.3]} 2. exd5 {[%clk 0:03:00.4]}
2... Nf6 {[%clk 0:02:58.7]} 3. Bb5+ {[%clk 0:02:59.7]} 3... Nbd7 {[%clk
0:02:57.8]} 4. c4 {[%clk 0:02:51.4]} 4... a6 {[%clk 0:02:57.1]} 5. Ba4 {[%clk
0:02:51.1]} 5... b5 {[%clk 0:02:57.5]} 6. cxb5 {[%clk 0:02:50.9]} 6... Nxd5
{[%clk 0:02:56.2]} 7. Bb3 {[%clk 0:02:35.9]} 7... Nc5 {[%clk 0:02:53.6]} 8. Nc3
{[%clk 0:02:05.4]} 8... Nxb3 {[%clk 0:02:06.4]} 9. axb3 {[%clk 0:01:52.2]} 9...
Nb4 {[%clk 0:01:39]} 10. Nge2 {[%clk 0:01:09.7]} 10... Nd3+ {[%clk 0:01:36.1]}
11. Kf1 {[%clk 0:01:09]} 11... e5 {[%clk 0:01:28.7]} 12. Qc2 {[%clk 0:00:52.9]}
12... Be7 {[%clk 0:01:12.5]} 13. bxa6 {[%clk 0:00:20.3]} 13... Bxa6 {[%clk
0:01:08.1]} 14. b4 {[%clk 0:00:18.7]} 14... Nxb4 {[%clk 0:00:54]} 15. Qa4+
{[%clk 0:00:16.4]} 15... c6 {[%clk 0:00:54.4]} 16. Qb3 {[%clk 0:00:10.5]} 16...
Bxe2+ {[%clk 0:00:53.4]} 0-1

[Event "Early-Titled-Tuesday-Blitz-January-23-2024"]
[Site "Chess.com"]
[Date "2024.01.23"]
[Round "3"]
[White "Boundless_Strike"]
[Black "wild3000"]
[Result "1-0"]
[WhiteElo "2617"]
[BlackElo "2434"]
[TimeControl "180+1"]
[EndTime "8:26:12 PST"]
[Termination "Boundless_Strike won by resignation"]

1. d4 {[%clk 0:02:55.9]} 1... d5 {[%clk 0:03:00]} 2. e4 {[%clk 0:02:55]} 2...
dxe4 {[%clk 0:02:59.1]} 3. Nc3 {[%clk 0:02:55.7]} 3... e6 {[%clk 0:02:58.8]} 4.
f3 {[%clk 0:02:55]} 4... exf3 {[%clk 0:02:56.7]} 5. Nxf3 {[%clk 0:02:55.1]} 5...
Nf6 {[%clk 0:02:57.6]} 6. Bd3 {[%clk 0:02:54.6]} 6... c5 {[%clk 0:02:56.7]} 7.
Be3 {[%clk 0:02:49.6]} 7... cxd4 {[%clk 0:02:51.1]} 8. Nxd4 {[%clk 0:02:49.3]}
8... Nc6 {[%clk 0:02:50.3]} 9. Nxc6 {[%clk 0:02:43.5]} 9... bxc6 {[%clk
0:02:51.2]} 10. Qf3 {[%clk 0:02:44]} 10... Bd7 {[%clk 0:02:38.8]} 11. O-O {[%clk
0:02:40.9]} 11... Be7 {[%clk 0:02:38.6]} 12. Rad1 {[%clk 0:02:35.8]} 12... Qc7
{[%clk 0:02:24.1]} 13. Ne4 {[%clk 0:02:28.1]} 13... O-O {[%clk 0:02:19]} 14.
Nxf6+ {[%clk 0:02:10.2]} 14... Bxf6 {[%clk 0:02:17.4]} 15. Qe4 {[%clk
0:02:01.8]} 15... g6 {[%clk 0:01:07.1]} 16. Rxf6 {[%clk 0:01:55.8]} 16... Rab8
{[%clk 0:01:06]} 17. Rdf1 {[%clk 0:01:48.9]} 17... e5 {[%clk 0:01:05.6]} 18. Bc5
{[%clk 0:01:34.3]} 18... Be8 {[%clk 0:00:54.9]} 19. Bxf8 {[%clk 0:01:32]} 19...
Kxf8 {[%clk 0:00:55.8]} 20. Bc4 {[%clk 0:01:29.9]} 20... Qb6+ {[%clk 0:00:45.9]}
21. Kh1 {[%clk 0:01:29.6]} 21... Rb7 {[%clk 0:00:46.2]} 22. Qxe5 {[%clk
0:01:28.7]} 22... Qxb2 {[%clk 0:00:43.8]} 23. Qxb2 {[%clk 0:01:10.8]} 23... Rxb2
{[%clk 0:00:42.9]} 24. Bxf7 {[%clk 0:01:11.5]} 24... Bxf7 {[%clk 0:00:41.7]} 25.
Rxf7+ {[%clk 0:01:12.4]} 25... Kg8 {[%clk 0:00:41.3]} 26. Rxa7 {[%clk
0:01:11.7]} 26... h5 {[%clk 0:00:41]} 27. h3 {[%clk 0:01:11.6]} 27... Rxc2
{[%clk 0:00:40.6]} 28. Rd1 {[%clk 0:01:11.2]} 28... Rf2 {[%clk 0:00:39.6]} 29.
Rd8+ {[%clk 0:01:10.9]} 29... Rf8 {[%clk 0:00:40.5]} 30. Rxf8+ {[%clk
0:01:11.3]} 30... Kxf8 {[%clk 0:00:41.4]} 31. Rc7 {[%clk 0:01:10]} 31... c5
{[%clk 0:00:42.3]} 32. Rxc5 {[%clk 0:01:10.2]} 32... g5 {[%clk 0:00:42.3]} 33.
Rxg5 {[%clk 0:01:10.1]} 33... h4 {[%clk 0:00:43.2]} 34. Rh5 {[%clk 0:01:10.6]}
34... Kf7 {[%clk 0:00:43.7]} 35. Rxh4 {[%clk 0:01:11.3]} 35... Kf6 {[%clk
0:00:44.6]} 36. Rg4 {[%clk 0:01:12]} 1-0

[Event "Early-Titled-Tuesday-Blitz-January-23-2024"]
[Site "Chess.com"]
[Date "2024.01.23"]
[Round "3"]
[White "ScofieldMichael01"]
[Black "Eloist"]
[Result "1-0"]
[WhiteElo "2617"]
[BlackElo "2433"]
[TimeControl "180+1"]
[EndTime "8:26:13 PST"]
[Termination "ScofieldMichael01 won on time"]

1. d4 {[%clk 0:03:00.9]} 1... e6 {[%clk 0:02:38.7]} 2. Nf3 {[%clk 0:02:58.9]}
2... Nf6 {[%clk 0:02:37.5]} 3. Bf4 {[%clk 0:02:59.1]} 3... d5 {[%clk 0:02:36.9]}
4. e3 {[%clk 0:02:57.9]} 4... c5 {[%clk 0:02:36.7]} 5. Nbd2 {[%clk 0:02:57.4]}
5... Nc6 {[%clk 0:02:35.9]} 6. c3 {[%clk 0:02:57.6]} 6... Bd6 {[%clk 0:02:34.7]}
7. Bg3 {[%clk 0:02:57.7]} 7... O-O {[%clk 0:02:33.9]} 8. Bd3 {[%clk 0:02:58.2]}
8... b6 {[%clk 0:02:33.2]} 9. Ne5 {[%clk 0:02:57.2]} 9... Ne7 {[%clk 0:02:25]}
10. O-O {[%clk 0:02:51]} 10... Nf5 {[%clk 0:02:18.3]} 11. Bf4 {[%clk 0:02:41.6]}
11... Bb7 {[%clk 0:02:06.2]} 12. a4 {[%clk 0:02:40.4]} 12... Ne4 {[%clk
0:01:58.9]} 13. Nxe4 {[%clk 0:02:24.6]} 13... dxe4 {[%clk 0:01:58.4]} 14. Bb5
{[%clk 0:02:25.1]} 14... a6 {[%clk 0:01:28.8]} 15. Bc6 {[%clk 0:02:11.3]} 15...
Bxe5 {[%clk 0:00:50.5]} 16. Bxb7 {[%clk 0:02:11]} 16... Ra7 {[%clk 0:00:34.8]}
17. Bxe5 {[%clk 0:01:43.5]} 17... Rxb7 {[%clk 0:00:34]} 18. Qg4 {[%clk
0:01:44.1]} 18... Qd5 {[%clk 0:00:28.6]} 19. f3 {[%clk 0:01:42.8]} 19... h5
{[%clk 0:00:16.3]} 20. Qxh5 {[%clk 0:01:23.4]} 20... Nxe3 {[%clk 0:00:11.3]} 21.
Qg5 {[%clk 0:01:19.8]} 21... Nf5 {[%clk 0:00:08.7]} 22. fxe4 {[%clk 0:01:19.9]}
22... f6 {[%clk 0:00:04.9]} 23. exd5 {[%clk 0:01:18.2]} 23... fxg5 {[%clk
0:00:05]} 24. dxe6 {[%clk 0:01:18.8]} 24... cxd4 {[%clk 0:00:02.9]} 25. cxd4
{[%clk 0:01:19.7]} 25... Re7 {[%clk 0:00:02.2]} 26. d5 {[%clk 0:01:18]} 1-0

[Event "Early-Titled-Tuesday-Blitz-January-23-2024"]
[Site "Chess.com"]
[Date "2024.01.23"]
[Round "3"]
[White "Bushonica"]
[Black "Nechitaylo_Nikita"]
[Result "0-1"]
[WhiteElo "1813"]
[BlackElo "2320"]
[TimeControl "180+1"]
[EndTime "8:26:13 PST"]
[Termination "Nechitaylo_Nikita won by resignation"]

1. e4 {[%clk 0:03:00.9]} 1... c5 {[%clk 0:02:59.8]} 2. Nf3 {[%clk 0:03:00.7]}
2... d6 {[%clk 0:03:00.1]} 3. d4 {[%clk 0:03:00.6]} 3... cxd4 {[%clk 0:03:01]}
4. Nxd4 {[%clk 0:03:00.7]} 4... Nf6 {[%clk 0:03:01.7]} 5. Nc3 {[%clk 0:03:00.5]}
5... Nc6 {[%clk 0:03:02.3]} 6. Be2 {[%clk 0:02:58.3]} 6... g6 {[%clk 0:03:00.7]}
7. O-O {[%clk 0:02:58]} 7... Bg7 {[%clk 0:03:01.3]} 8. Kh1 {[%clk 0:02:57.9]}
8... O-O {[%clk 0:03:01.9]} 9. f4 {[%clk 0:02:57.9]} 9... Nxe4 {[%clk 0:02:39]}
10. Nxc6 {[%clk 0:02:49.2]} 10... Nxc3 {[%clk 0:02:39.5]} 11. Nxd8 {[%clk
0:02:49]} 11... Nxd1 {[%clk 0:02:40.1]} 12. Rxd1 {[%clk 0:02:48.5]} 12... Rxd8
{[%clk 0:02:39.6]} 13. c3 {[%clk 0:02:48.6]} 13... Bd7 {[%clk 0:02:32.3]} 14.
Be3 {[%clk 0:02:48.3]} 14... Bc6 {[%clk 0:02:32.4]} 15. Bc4 {[%clk 0:02:42]}
15... d5 {[%clk 0:02:29.3]} 16. Bb3 {[%clk 0:02:41.6]} 16... a5 {[%clk
0:02:26.4]} 17. a4 {[%clk 0:02:40.9]} 17... f6 {[%clk 0:02:06.6]} 18. Bc5 {[%clk
0:02:39.5]} 18... e5 {[%clk 0:02:06]} 19. fxe5 {[%clk 0:02:34.5]} 19... fxe5
{[%clk 0:02:06.9]} 20. Re1 {[%clk 0:02:33.6]} 20... Kh8 {[%clk 0:02:01.3]} 21.
Rad1 {[%clk 0:02:32.4]} 21... d4 {[%clk 0:01:42.9]} 22. cxd4 {[%clk 0:02:22.2]}
22... exd4 {[%clk 0:01:43.8]} 23. Re7 {[%clk 0:02:20.9]} 23... Re8 {[%clk
0:01:44]} 24. Rde1 {[%clk 0:01:54]} 24... Rxe7 {[%clk 0:01:37.3]} 25. Rxe7
{[%clk 0:01:53.2]} 25... d3 {[%clk 0:01:29]} 26. Kg1 {[%clk 0:01:36]} 26... Bxb2
{[%clk 0:01:12.6]} 27. Kf2 {[%clk 0:01:35.8]} 27... Rd8 {[%clk 0:00:42.1]} 28.
Ke1 {[%clk 0:01:33.3]} 28... d2+ {[%clk 0:00:39.6]} 29. Kd1 {[%clk 0:01:33.1]}
29... Bxg2 {[%clk 0:00:39.9]} 30. Rf7 {[%clk 0:01:26.9]} 30... Bh3 {[%clk
0:00:34.8]} 31. Bb6 {[%clk 0:01:22.7]} 31... Bg4+ {[%clk 0:00:33.2]} 32. Kc2
{[%clk 0:01:12.5]} 32... d1=Q+ {[%clk 0:00:33.2]} 33. Kxb2 {[%clk 0:01:12.7]}
33... Rd2+ {[%clk 0:00:28.4]} 0-1

[Event "Early-Titled-Tuesday-Blitz-January-23-2024"]
[Site "Chess.com"]
[Date "2024.01.23"]
[Round "3"]
[White "NowInChess"]
[Black "masterofpuppets2"]
[Result "0-1"]
[WhiteElo "2281"]
[BlackElo "2511"]
[TimeControl "180+1"]
[EndTime "8:26:17 PST"]
[Termination "masterofpuppets2 won on time"]

1. e4 {[%clk 0:03:00.9]} 1... c5 {[%clk 0:02:57.4]} 2. d3 {[%clk 0:03:01]} 2...
Nc6 {[%clk 0:02:57.3]} 3. g3 {[%clk 0:03:01.3]} 3... g6 {[%clk 0:02:57.3]} 4.
Bg2 {[%clk 0:03:01.6]} 4... Bg7 {[%clk 0:02:58]} 5. f4 {[%clk 0:03:02.1]} 5...
Rb8 {[%clk 0:02:56.6]} 6. a4 {[%clk 0:02:59.7]} 6... e6 {[%clk 0:02:53.1]} 7.
Nf3 {[%clk 0:02:59.1]} 7... Nge7 {[%clk 0:02:53.2]} 8. O-O {[%clk 0:02:54.6]}
8... O-O {[%clk 0:02:53.3]} 9. c3 {[%clk 0:02:52.6]} 9... a6 {[%clk 0:02:48.2]}
10. Be3 {[%clk 0:02:50.3]} 10... d6 {[%clk 0:02:46.2]} 11. d4 {[%clk 0:02:49.6]}
11... cxd4 {[%clk 0:02:44.2]} 12. cxd4 {[%clk 0:02:50.5]} 12... d5 {[%clk
0:02:35.4]} 13. e5 {[%clk 0:02:50.1]} 13... Nf5 {[%clk 0:02:35.3]} 14. Bf2
{[%clk 0:02:49.8]} 14... h5 {[%clk 0:02:32.9]} 15. Nc3 {[%clk 0:02:45.2]} 15...
b5 {[%clk 0:02:31]} 16. axb5 {[%clk 0:02:42.8]} 16... axb5 {[%clk 0:02:31.9]}
17. Qd3 {[%clk 0:02:11.6]} 17... Qb6 {[%clk 0:02:30.9]} 18. h3 {[%clk
0:01:58.9]} 18... Bd7 {[%clk 0:02:25.8]} 19. g4 {[%clk 0:01:58.7]} 19... hxg4
{[%clk 0:02:26.7]} 20. hxg4 {[%clk 0:01:59.2]} 20... Nh6 {[%clk 0:02:25.7]} 21.
Bh3 {[%clk 0:01:57.3]} 21... Na5 {[%clk 0:02:21.4]} 22. Qe2 {[%clk 0:01:21.9]}
22... Rfc8 {[%clk 0:02:16]} 23. Bh4 {[%clk 0:01:03.4]} 23... Ra8 {[%clk
0:02:07.6]} 24. Bf6 {[%clk 0:00:57.6]} 24... b4 {[%clk 0:02:00.8]} 25. Na4
{[%clk 0:00:50.5]} 25... Qb5 {[%clk 0:01:59.8]} 26. Qf2 {[%clk 0:00:15.9]} 26...
Nb3 {[%clk 0:01:56.9]} 27. Bxg7 {[%clk 0:00:12.6]} 27... Kxg7 {[%clk 0:01:56.2]}
28. Qh4 {[%clk 0:00:10.6]} 28... Nxa1 {[%clk 0:01:36.2]} 29. Qf6+ {[%clk
0:00:09.4]} 29... Kg8 {[%clk 0:01:36.2]} 30. g5 {[%clk 0:00:09.2]} 30... Nf5
{[%clk 0:01:34.4]} 31. Bxf5 {[%clk 0:00:08.8]} 31... exf5 {[%clk 0:01:33.6]} 32.
Rf2 {[%clk 0:00:03]} 32... Qc6 {[%clk 0:01:30.9]} 33. Rh2 {[%clk 0:00:02.2]}
33... Qxf6 {[%clk 0:01:30.6]} 0-1

[Event "Early-Titled-Tuesday-Blitz-January-23-2024"]
[Site "Chess.com"]
[Date "2024.01.23"]
[Round "3"]
[White "Flaccidmoves"]
[Black "KIEV-1"]
[Result "1-0"]
[WhiteElo "2440"]
[BlackElo "2243"]
[TimeControl "180+1"]
[EndTime "8:26:20 PST"]
[Termination "Flaccidmoves won on time"]

1. d4 {[%clk 0:03:00.9]} 1... d5 {[%clk 0:02:57]} 2. c4 {[%clk 0:03:01.1]} 2...
c6 {[%clk 0:02:56.9]} 3. cxd5 {[%clk 0:03:01.1]} 3... cxd5 {[%clk 0:02:56.5]} 4.
Bg5 {[%clk 0:03:01.8]} 4... Nc6 {[%clk 0:02:51.5]} 5. Nc3 {[%clk 0:03:02.1]}
5... Bf5 {[%clk 0:02:50.5]} 6. e3 {[%clk 0:02:59.7]} 6... h6 {[%clk 0:02:50.2]}
7. Bh4 {[%clk 0:02:58.6]} 7... Nf6 {[%clk 0:02:42.2]} 8. Bxf6 {[%clk 0:02:57.3]}
8... gxf6 {[%clk 0:02:41]} 9. Bd3 {[%clk 0:02:50.4]} 9... Bxd3 {[%clk
0:02:40.5]} 10. Qxd3 {[%clk 0:02:51.3]} 10... e6 {[%clk 0:02:36.7]} 11. Nge2
{[%clk 0:02:50.5]} 11... a6 {[%clk 0:02:32.6]} 12. O-O {[%clk 0:02:46.2]} 12...
Bd6 {[%clk 0:02:30.9]} 13. Rac1 {[%clk 0:02:37.5]} 13... f5 {[%clk 0:02:30.4]}
14. g3 {[%clk 0:02:25.7]} 14... h5 {[%clk 0:02:28.1]} 15. h4 {[%clk 0:02:24.8]}
15... Rg8 {[%clk 0:02:21.7]} 16. Kh1 {[%clk 0:02:23.8]} 16... Rg4 {[%clk
0:02:07.1]} 17. Rg1 {[%clk 0:01:27.8]} 17... Qf6 {[%clk 0:01:30.2]} 18. Rg2
{[%clk 0:01:15.5]} 18... O-O-O {[%clk 0:01:25.8]} 19. Na4 {[%clk 0:01:02.6]}
19... Kb8 {[%clk 0:01:18.5]} 20. Rxc6 {[%clk 0:00:55.8]} 1-0

[Event "Early-Titled-Tuesday-Blitz-January-23-2024"]
[Site "Chess.com"]
[Date "2024.01.23"]
[Round "3"]
[White "tptagain"]
[Black "djano"]
[Result "1-0"]
[WhiteElo "2911"]
[BlackElo "2659"]
[TimeControl "180+1"]
[EndTime "8:26:23 PST"]
[Termination "tptagain won by resignation"]

1. Nf3 {[%clk 0:03:00.9]} 1... c5 {[%clk 0:02:59.8]} 2. e3 {[%clk 0:03:00.6]}
2... g6 {[%clk 0:02:59]} 3. d4 {[%clk 0:03:01]} 3... cxd4 {[%clk 0:02:58.5]} 4.
exd4 {[%clk 0:03:00.9]} 4... Bg7 {[%clk 0:02:58.5]} 5. h3 {[%clk 0:02:57.1]}
5... Nf6 {[%clk 0:02:58.1]} 6. Bd3 {[%clk 0:02:56.6]} 6... O-O {[%clk
0:02:57.7]} 7. O-O {[%clk 0:02:57.2]} 7... b6 {[%clk 0:02:55.1]} 8. Re1 {[%clk
0:02:57.3]} 8... Bb7 {[%clk 0:02:55]} 9. Bg5 {[%clk 0:02:56.5]} 9... d6 {[%clk
0:02:47.1]} 10. c4 {[%clk 0:02:52.7]} 10... Nbd7 {[%clk 0:02:45]} 11. Nc3 {[%clk
0:02:51.7]} 11... Re8 {[%clk 0:02:35]} 12. d5 {[%clk 0:02:41.1]} 12... Rc8
{[%clk 0:02:22.7]} 13. Rc1 {[%clk 0:02:38.7]} 13... a6 {[%clk 0:02:19.9]} 14.
Bf1 {[%clk 0:02:33.9]} 14... Qc7 {[%clk 0:02:18.2]} 15. Qd2 {[%clk 0:02:30.2]}
15... Qb8 {[%clk 0:02:17.8]} 16. Bh6 {[%clk 0:02:18.3]} 16... Nc5 {[%clk
0:02:04.7]} 17. Bxg7 {[%clk 0:02:16.8]} 17... Kxg7 {[%clk 0:02:05.6]} 18. Nd4
{[%clk 0:02:04]} 18... e5 {[%clk 0:01:52.8]} 19. dxe6 {[%clk 0:02:03.8]} 19...
Nxe6 {[%clk 0:01:52]} 20. Rcd1 {[%clk 0:01:59.9]} 20... Nc5 {[%clk 0:01:44.1]}
21. Nf5+ {[%clk 0:01:56.4]} 21... gxf5 {[%clk 0:01:31.2]} 22. Qg5+ {[%clk
0:01:56.1]} 22... Kf8 {[%clk 0:01:23.6]} 23. Qxf6 {[%clk 0:01:57]} 23... Kg8
{[%clk 0:01:11.4]} 24. Qg5+ {[%clk 0:01:56.9]} 24... Kf8 {[%clk 0:01:11.4]} 25.
Qxf5 {[%clk 0:01:56.6]} 25... Re6 {[%clk 0:01:01.2]} 26. Qxh7 {[%clk 0:01:51.3]}
26... Rce8 {[%clk 0:00:49.5]} 27. Rxe6 {[%clk 0:01:47.1]} 27... Nxe6 {[%clk
0:00:48.4]} 28. Be2 {[%clk 0:01:25]} 28... Qd8 {[%clk 0:00:35.4]} 29. Qh6+
{[%clk 0:01:18.5]} 29... Ke7 {[%clk 0:00:28.4]} 30. Nd5+ {[%clk 0:01:17.6]}
30... Bxd5 {[%clk 0:00:22.7]} 31. cxd5 {[%clk 0:01:18.5]} 31... Nc5 {[%clk
0:00:19]} 32. Bg4 {[%clk 0:01:18]} 32... Rg8 {[%clk 0:00:10.4]} 33. Re1+ {[%clk
0:01:14.2]} 1-0